[Event "SWE-ch Masters 2019"]
[Site "Eskilstuna"]
[Date "2019.07.06"]
[Round "1.10"]
[White "Nikolic, Vladan"]
[Black "Bannoura, Jeries"]
[Result "1-0"]
[ECO "A42"]
[WhiteElo "2153"]
[BlackElo "1976"]
[Annotator "NA"]
[PlyCount "49"]
[EventDate "2019.07.06"]
[EventType "tourn"]
[EventCountry "SWE"]
[SourceTitle "playchess.com"]
[Source "ChessBase"]
[SourceQuality "1"]
[TimeControl "40/5400+30:1800+30"]

1. d4 {[%emt 0:00:00]} d6 {[%emt 0:00:00]} 2. c4 {[%emt 0:00:00]} g6 {[%emt 0:00:00]} 3. e4 {[%emt 0:00:06]} Bg7 {[%emt 0:00:00]} 4. Nc3 {[%emt 0:00:20]} Nc6 {[%emt 0:00:15]} 5. Be3 {[%emt 0:00:28]} e5 {[%emt 0:00:27]} 6. Nge2 {[%emt 0:00:30]} Nge7 {[%emt 0:06:03]} 7. d5 {[%emt 0:02:47]} Nb8 {[%emt 0:00:12]} 8. c5 {[%emt 0:02:34]} f5 {[%emt 0:00:34]} 9. f3 {[%emt 0:00:27]} Nd7 {[%emt 0:02:59]} 10. cxd6 {[%emt 0:06:54]} cxd6 {[%emt 0:02:19]} 11. Nb5 {[%emt 0:07:13]} Nf6 {[%emt 0:00:37]} 12. Rc1 {[%emt 0:04:58]} O-O {[%emt 0:06:37]} 13. Nc7 {[%emt 0:08:27]} fxe4 {[%emt 0:02:40]} 14. Nxa8 {[%emt 0:03:06]} exf3 {[%emt 0:04:35]} 15. gxf3 {[%emt 0:07:55]} Nfxd5 {[%emt 0:04:07]} 16. Bd2 {[%emt 0:04:14]} Be6 {[%emt 0:02:04]} 17. Nc3 {[%emt 0:01:45]} Nf5 {[%emt 0:02:22]} 18. Qa4 {[%emt 0:06:13]} Nd4 {[%emt 0:02:39]} 19. Be2 {[%emt 0:00:11]} Qh4+ {[%emt 0:03:57]} 20. Kd1 {[%emt 0:00:13]} Bh6 {[%emt 0:00:25]} 21. Bxh6 {[%emt 0:06:58]} Qxh6 {[%emt 0:04:10]} 22. Nxd5 {[%emt 0:03:29]} Nxe2 {[%emt 0:01:04]} 23. Ne7+ {[%emt 0:03:02]} Kh8 {[%emt 0:00:20]} 24. Kxe2 {[%emt 0:00:25]} Rxa8 {[%emt 0:00:38]} 25. Rc8+ {[%emt 0:07:01]} 1-0

[Event "SWE-ch Masters 2019"]
[Site "Eskilstuna"]
[Date "2019.07.07"]
[Round "2.1"]
[White "Lind, Jan-Olov"]
[Black "Nikolic, Vladan"]
[Result "1/2-1/2"]
[ECO "C44"]
[WhiteElo "2155"]
[BlackElo "2153"]
[Annotator "NA"]
[PlyCount "157"]
[EventDate "2019.07.06"]
[EventType "swiss"]
[EventCountry "SWE"]
[SourceTitle "playchess.com"]
[Source "ChessBase"]
[SourceQuality "1"]
[TimeControl "40/5400+30:1800+30"]

1. e4 {[%emt 0:00:00]} e5 {[%emt 0:00:00]} 2. Nf3 {[%emt 0:01:08]} Nc6 {[%emt 0:00:00]} 3. Be2 {[%emt 0:00:45]} Nf6 {[%emt 0:00:24]} 4. d3 {[%emt 0:00:06]} d5 {[%emt 0:00:49]} 5. Nbd2 {[%emt 0:00:10]} Bc5 {[%emt 0:00:22]} 6. O-O {[%emt 0:00:13]} O-O {[%emt 0:00:33]} 7. c3 {[%emt 0:00:44]} a5 {[%emt 0:00:59]} 8. b3 {[%emt 0:07:19]} h6 {[%emt 0:01:46]} 9. a3 {[%emt 0:02:17]} Re8 {[%emt 0:03:39]} 10. Bb2 {[%emt 0:01:15]} Ba7 {[%emt 0:01:47]} 11. b4 {[%emt 0:02:53]} d4 {[%emt 0:11:26]} 12. Nc4 {[%emt 0:14:10]} b5 {[%emt 0:20:21]} 13. Nxa5 {[%emt 0:05:17]} Nxa5 {[%emt 0:00:27]} 14. bxa5 {[%emt 0:00:07]} c5 {[%emt 0:01:40]} 15. a4 {[%emt 0:11:50]} b4 {[%emt 0:02:36]} 16. cxb4 {[%emt 0:02:15]} cxb4 {[%emt 0:00:07]} 17. Nd2 {[%emt 0:08:23]} Be6 {[%emt 0:06:03]} 18. Nb3 {[%emt 0:07:44]} Bxb3 {[%emt 0:03:49]} 19. Qxb3 {[%emt 0:00:16]} Qxa5 {[%emt 0:03:34]} 20. f4 {[%emt 0:12:44]} Bb8 {[%emt 0:17:56]} 21. fxe5 {[%emt 0:03:54]} Bxe5 {[%emt 0:04:56]} 22. Rf5 {[%emt 0:05:14]} Re6 {[%emt 0:03:10]} 23. Kh1 {[%emt 0:01:20]} g6 {[%emt 0:00:54]} 24. Rf2 {[%emt 0:05:22]} Rc6 {[%emt 0:06:40]} 25. Qd1 {[%emt 0:01:23]} Rac8 {[%emt 0:01:34]} 26. Qf1 {[%emt 0:02:43]} Qc7 {[%emt 0:02:23]} 27. Bd1 {[%emt 0:00:40]} Kg7 {[%emt 0:00:11]} 28. g3 {[%emt 0:00:41]} Qd7 {[%emt 0:01:20]} 29. a5 {[%emt 0:00:35]} Ra6 {[%emt 0:00:47]} 30. Bc1 {[%emt 0:01:12]} Rc5 {[%emt 0:01:11]} 31. Bd2 {[%emt 0:00:17]} Rcxa5 {[%emt 0:01:23]} 32. Rb1 {[%emt 0:00:45]} Ra1 {[%emt 0:02:01]} 33. Bb3 {[%emt 0:00:11]} Rxb1 {[%emt 0:00:28]} 34. Qxb1 {[%emt 0:00:01]} Qh3 {[%emt 0:01:09]} 35. Kg1 {[%emt 0:02:00]} Ra7 {[%emt 0:00:21]} 36. Bxb4 {[%emt 0:01:18]} Ng4 {[%emt 0:00:25]} 37. Bc5 {[%emt 0:00:44]} Nxf2 {[%emt 0:00:23]} 38. Bxa7 {[%emt 0:00:07]} Ng4 {[%emt 0:00:54]} 39. Qc2 {[%emt 0:00:29]} Ne3 {[%emt 0:00:26]} 40. Qf2 {[%emt 0:00:16]} Qd7 {[%emt 0:00:35]} 41. Bc5 {[%emt 0:09:16]} h5 {[%emt 0:02:51]} 42. Ba3 {[%emt 0:06:18]} h4 {[%emt 0:07:19]} 43. Bc1 {[%emt 0:05:40]} Qb7 {[%emt 0:15:13]} 44. Ba2 {[%emt 0:02:04]} f6 {[%emt 0:02:56]} 45. Qb2 {[%emt 0:05:33]} Qd7 {[%emt 0:01:58]} 46. Qb3 {[%emt 0:02:38]} hxg3 {[%emt 0:02:21]} 47. Qg8+ {[%emt 0:02:09]} Kh6 {[%emt 0:00:04]} 48. h4 {[%emt 0:00:19]} Qg7 {[%emt 0:01:16]} 49. Qxg7+ {[%emt 0:01:01]} Kxg7 {[%emt 0:00:06]} 50. Bb3 {[%emt 0:00:20]} Ng4 {[%emt 0:00:34]} 51. Kg2 {[%emt 0:00:25]} Nf2 {[%emt 0:00:51]} 52. Bc2 {[%emt 0:00:47]} f5 {[%emt 0:00:20]} 53. exf5 {[%emt 0:00:22]} gxf5 {[%emt 0:00:06]} 54. Kf3 {[%emt 0:00:15]} Kg6 {[%emt 0:00:22]} 55. Bd2 {[%emt 0:00:11]} Ng4 {[%emt 0:00:50]} 56. Ba4 {[%emt 0:00:50]} Kh5 {[%emt 0:00:33]} 57. Bg5 {[%emt 0:00:13]} Kg6 {[%emt 0:00:40]} 58. Be8+ {[%emt 0:00:23]} Kg7 {[%emt 0:00:23]} 59. Bd7 {[%emt 0:00:54]} Nh2+ {[%emt 0:00:44]} 60. Kg2 {[%emt 0:00:13]} f4 {[%emt 0:00:13]} 61. Bc6 {[%emt 0:00:23]} Ng4 {[%emt 0:00:45]} 62. Kf3 {[%emt 0:01:14]} Nh2+ {[%emt 0:00:05]} 63. Kg2 {[%emt 0:00:05]} Bd6 {[%emt 0:00:08]} 64. Be4 {[%emt 0:00:19]} Bc7 {[%emt 0:01:12]} 65. h5 {[%emt 0:00:10]} Ng4 {[%emt 0:00:29]} 66. Kf3 {[%emt 0:00:45]} Nh2+ {[%emt 0:00:41]} 67. Kg2 {[%emt 0:00:07]} Ng4 {[%emt 0:00:30]} 68. Kf3 {[%emt 0:00:02]} Ne5+ {[%emt 0:00:27]} 69. Kxf4 {[%emt 0:00:48]} Nxd3+ {[%emt 0:00:16]} 70. Kf5 {[%emt 0:00:52]} Nf2 {[%emt 0:00:33]} 71. Bf6+ {[%emt 0:01:15]} Kh6 {[%emt 0:00:32]} 72. Bg5+ {[%emt 0:00:09]} Kh7 {[%emt 0:00:30]} 73. Bf3 {[%emt 0:01:07]} d3 {[%emt 0:00:31]} 74. Bd2 {[%emt 0:00:20]} Bb8 {[%emt 0:00:32]} 75. h6 {[%emt 0:00:23]} Bd6 {[%emt 0:00:20]} 76. Ke6 {[%emt 0:00:19]} Bf8 {[%emt 0:00:35]} 77. Bf4 {[%emt 0:00:46]} d2 {[%emt 0:00:43]} 78. Bxd2 {[%emt 0:00:26]} Bxh6 {[%emt 0:00:05]} 79. Be1 {[%emt 0:00:22]} 1/2-1/2

[Event "SWE-ch Masters 2019"]
[Site "Eskilstuna"]
[Date "2019.07.07"]
[Round "2.2"]
[White "Gromark, Per-Olof"]
[Black "Olsson, Svante"]
[Result "0-1"]
[ECO "E92"]
[WhiteElo "1909"]
[BlackElo "2155"]
[Annotator "NA"]
[PlyCount "84"]
[EventDate "2019.07.06"]
[EventType "swiss"]
[EventCountry "SWE"]
[SourceTitle "playchess.com"]
[Source "ChessBase"]
[SourceQuality "1"]
[TimeControl "40/5400+30:1800+30"]

1. c4 {[%emt 0:00:00]} g6 {[%emt 0:00:00]} 2. e4 {[%emt 0:00:00]} Bg7 {[%emt 0:00:00]} 3. d4 {[%emt 0:00:00]} d6 {[%emt 0:00:00]} 4. Nc3 {[%emt 0:00:00]} Nf6 {[%emt 0:00:02]} 5. Nf3 {[%emt 0:00:00]} O-O {[%emt 0:00:13]} 6. Be2 {[%emt 0:00:01]} e5 {[%emt 0:00:21]} 7. d5 {[%emt 0:00:05]} a5 {[%emt 0:00:16]} 8. Bg5 {[%emt 0:00:09]} Na6 {[%emt 0:00:28]} 9. Nd2 {[%emt 0:00:23]} h6 {[%emt 0:00:12]} 10. Be3 {[%emt 0:00:06]} Ne8 {[%emt 0:02:06]} 11. a3 {[%emt 0:01:04]} Bd7 {[%emt 0:00:38]} 12. Rb1 {[%emt 0:03:16]} f5 {[%emt 0:02:09]} 13. f3 {[%emt 0:00:11]} Nf6 {[%emt 0:00:57]} 14. b4 {[%emt 0:02:21]} axb4 {[%emt 0:00:47]} 15. axb4 {[%emt 0:00:35]} b6 {[%emt 0:00:36]} 16. O-O {[%emt 0:07:31]} Nh5 {[%emt 0:01:26]} 17. Na4 {[%emt 0:03:32]} Nf4 {[%emt 0:00:41]} 18. Rf2 {[%emt 0:11:37]} Nh3+ {[%emt 0:12:52]} 19. gxh3 {[%emt 0:03:02]} f4 {[%emt 0:00:08]} 20. Bxb6 {[%emt 0:05:06]} cxb6 {[%emt 0:00:24]} 21. Bf1 {[%emt 0:01:59]} Qc7 {[%emt 0:05:45]} 22. Nc3 {[%emt 0:04:28]} Bf6 {[%emt 0:05:47]} 23. Nb5 {[%emt 0:10:53]} Qb8 {[%emt 0:00:16]} 24. Kh1 {[%emt 0:05:03]} Bh4 {[%emt 0:00:27]} 25. Rg2 {[%emt 0:04:13]} Rf6 {[%emt 0:00:08]} 26. Qe2 {[%emt 0:01:32]} Nc7 {[%emt 0:03:03]} 27. Nb3 {[%emt 0:06:39]} Nxb5 {[%emt 0:05:14]} 28. cxb5 {[%emt 0:00:45]} Bxh3 {[%emt 0:02:33]} 29. Rg1 {[%emt 0:00:29]} Bd7 {[%emt 0:00:34]} 30. Qc4 {[%emt 0:03:54]} g5 {[%emt 0:03:17]} 31. Rg2 {[%emt 0:06:31]} Rf8 {[%emt 0:00:35]} 32. Rc2 {[%emt 0:01:15]} Ra7 {[%emt 0:02:10]} 33. Qe2 {[%emt 0:02:40]} Rc8 {[%emt 0:01:45]} 34. Rxc8+ {[%emt 0:01:59]} Qxc8 {[%emt 0:00:07]} 35. Rc1 {[%emt 0:00:15]} Rc7 {[%emt 0:00:11]} 36. Qd2 {[%emt 0:02:59]} Rxc1 {[%emt 0:02:12]} 37. Nxc1 {[%emt 0:00:12]} g4 {[%emt 0:00:55]} 38. Bg2 {[%emt 0:02:01]} Bxb5 {[%emt 0:02:08]} 39. Na2 {[%emt 0:00:39]} gxf3 {[%emt 0:03:45]} 40. Bxf3 {[%emt 0:00:25]} Qh3 {[%emt 0:00:35]} 41. Be2 {[%emt 0:34:23]} Bxe2 {[%emt 0:35:22]} 42. Qxe2 {[%emt 0:00:26]} f3 {[%emt 0:00:09]} 0-1

[Event "SWE-ch Masters 2019"]
[Site "Eskilstuna"]
[Date "2019.07.07"]
[Round "2.3"]
[White "Zadruzny, Nicolaj"]
[Black "Wahlund, Max"]
[Result "0-1"]
[ECO "B40"]
[WhiteElo "2280"]
[BlackElo "2100"]
[Annotator "NA"]
[PlyCount "80"]
[EventDate "2019.07.06"]
[EventType "swiss"]
[EventCountry "SWE"]
[SourceTitle "playchess.com"]
[Source "ChessBase"]
[SourceQuality "1"]
[TimeControl "40/5400+30:1800+30"]

1. e4 {[%emt 0:00:00]} e6 {[%emt 0:02:08]} 2. d3 {[%emt 0:00:00]} d5 {[%emt 0:00:09]} 3. Nd2 {[%emt 0:00:00]} c5 {[%emt 0:00:10]} 4. Ngf3 {[%emt 0:00:00]} Nc6 {[%emt 0:00:30]} 5. g3 {[%emt 0:00:06]} d4 {[%emt 0:00:13]} 6. Bg2 {[%emt 0:00:59]} e5 {[%emt 0:00:06]} 7. O-O {[%emt 0:01:00]} f6 {[%emt 0:00:08]} 8. a4 {[%emt 0:09:08]} Be6 {[%emt 0:00:14]} 9. Ne1 {[%emt 0:09:33]} Qd7 {[%emt 0:06:19]} 10. f4 {[%emt 0:03:33]} O-O-O {[%emt 0:01:47]} 11. Qe2 {[%emt 0:07:17]} Bd6 {[%emt 0:04:20]} 12. Nc4 {[%emt 0:02:22]} Nge7 {[%emt 0:02:50]} 13. Bd2 {[%emt 0:05:06]} h5 {[%emt 0:05:54]} 14. Nf3 {[%emt 0:11:22]} Bc7 {[%emt 0:14:02]} 15. fxe5 {[%emt 0:19:59]} Nxe5 {[%emt 0:00:57]} 16. Ncxe5 {[%emt 0:00:59]} Bxe5 {[%emt 0:00:06]} 17. Nxe5 {[%emt 0:02:20]} fxe5 {[%emt 0:00:08]} 18. Bg5 {[%emt 0:01:25]} Rde8 {[%emt 0:01:28]} 19. c3 {[%emt 0:02:28]} Nc6 {[%emt 0:00:45]} 20. a5 {[%emt 0:07:19]} Bg4 {[%emt 0:06:53]} 21. Qc2 {[%emt 0:04:07]} Rhf8 {[%emt 0:00:59]} 22. Kh1 {[%emt 0:06:01]} Qd6 {[%emt 0:08:29]} 23. h3 {[%emt 0:03:35]} Be6 {[%emt 0:00:33]} 24. Rfc1 {[%emt 0:01:26]} Kb8 {[%emt 0:03:06]} 25. Ra4 {[%emt 0:01:00]} Rf7 {[%emt 0:01:28]} 26. b4 {[%emt 0:01:12]} Ref8 {[%emt 0:03:10]} 27. cxd4 {[%emt 0:00:41]} Rf2 {[%emt 0:05:38]} 28. Qxc5 {[%emt 0:00:20]} Qd7 {[%emt 0:00:02]} 29. Be3 {[%emt 0:00:40]} Bxh3 {[%emt 0:01:09]} 30. Bxf2 {[%emt 0:00:09]} Rxf2 {[%emt 0:00:01]} 31. Rc2 {[%emt 0:00:25]} Bxg2+ {[%emt 0:06:23]} 32. Kg1 {[%emt 0:00:00]} Rf1+ {[%emt 0:00:09]} 33. Kxg2 {[%emt 0:00:10]} Qf7 {[%emt 0:00:04]} 34. Qd6+ {[%emt 0:00:35]} Ka8 {[%emt 0:00:10]} 35. Kh2 {[%emt 0:01:16]} Qf3 {[%emt 0:00:49]} 36. Rg2 {[%emt 0:00:38]} Qd1 {[%emt 0:00:45]} 37. Kh3 {[%emt 0:00:44]} Rh1+ {[%emt 0:00:25]} 38. Rh2 {[%emt 0:00:04]} Qg4+ {[%emt 0:00:07]} 39. Kg2 {[%emt 0:00:06]} Qe2+ {[%emt 0:00:08]} 40. Kxh1 {[%emt 0:00:09]} Qf1# {[%emt 0:00:04]} 0-1

[Event "SWE-ch Masters 2019"]
[Site "Eskilstuna"]
[Date "2019.07.07"]
[Round "2.4"]
[White "Emmoth, Alfons"]
[Black "Landgren, Andreas"]
[Result "0-1"]
[ECO "D87"]
[WhiteElo "2075"]
[BlackElo "2246"]
[Annotator "NA"]
[PlyCount "90"]
[EventDate "2019.07.06"]
[EventType "swiss"]
[EventCountry "SWE"]
[SourceTitle "playchess.com"]
[Source "ChessBase"]
[SourceQuality "1"]
[TimeControl "40/5400+30:1800+30"]

1. d4 {[%emt 0:00:00]} Nf6 {[%emt 0:00:00]} 2. c4 {[%emt 0:00:00]} g6 {[%emt 0:00:00]} 3. Nc3 {[%emt 0:00:00]} d5 {[%emt 0:00:00]} 4. cxd5 {[%emt 0:00:00]} Nxd5 {[%emt 0:00:00]} 5. e4 {[%emt 0:00:09]} Nxc3 {[%emt 0:00:00]} 6. bxc3 {[%emt 0:00:07]} Bg7 {[%emt 0:00:00]} 7. Bc4 {[%emt 0:00:10]} c5 {[%emt 0:00:00]} 8. Ne2 {[%emt 0:00:15]} O-O {[%emt 0:01:54]} 9. Be3 {[%emt 0:00:19]} Nc6 {[%emt 0:00:27]} 10. O-O {[%emt 0:00:09]} Na5 {[%emt 0:00:16]} 11. Bd3 {[%emt 0:00:12]} b6 {[%emt 0:00:08]} 12. Qd2 {[%emt 0:02:00]} e5 {[%emt 0:00:14]} 13. d5 {[%emt 0:06:50]} f5 {[%emt 0:08:35]} 14. f4 {[%emt 0:11:27]} fxe4 {[%emt 0:06:52]} 15. Bxe4 {[%emt 0:01:21]} Nc4 {[%emt 0:05:11]} 16. Qd3 {[%emt 0:10:18]} Nxe3 {[%emt 0:00:21]} 17. Qxe3 {[%emt 0:00:21]} Qd6 {[%emt 0:02:04]} 18. fxe5 {[%emt 0:06:54]} Rxf1+ {[%emt 0:05:26]} 19. Rxf1 {[%emt 0:00:16]} Qxe5 {[%emt 0:10:28]} 20. Qd3 {[%emt 0:24:08]} Bd7 {[%emt 0:06:52]} 21. c4 {[%emt 0:07:43]} Re8 {[%emt 0:06:55]} 22. Ng3 {[%emt 0:04:06]} Qd4+ {[%emt 0:01:46]} 23. Qxd4 {[%emt 0:00:27]} Bxd4+ {[%emt 0:00:18]} 24. Kh1 {[%emt 0:00:12]} Be5 {[%emt 0:05:50]} 25. Bd3 {[%emt 0:02:11]} Bxg3 {[%emt 0:10:19]} 26. hxg3 {[%emt 0:00:13]} Kg7 {[%emt 0:00:07]} 27. Kg1 {[%emt 0:02:31]} Bg4 {[%emt 0:03:39]} 28. Rf4 {[%emt 0:08:31]} Be2 {[%emt 0:03:41]} 29. Bxe2 {[%emt 0:02:19]} Rxe2 {[%emt 0:00:03]} 30. Rf2 {[%emt 0:00:15]} Re1+ {[%emt 0:08:26]} 31. Kh2 {[%emt 0:02:27]} Rc1 {[%emt 0:01:11]} 32. Re2 {[%emt 0:02:11]} Kf6 {[%emt 0:02:32]} 33. Re6+ {[%emt 0:00:53]} Kf7 {[%emt 0:01:46]} 34. Rc6 {[%emt 0:00:51]} Rxc4 {[%emt 0:00:39]} 35. Rc7+ {[%emt 0:00:08]} Ke8 {[%emt 0:01:15]} 36. Rxa7 {[%emt 0:00:51]} b5 {[%emt 0:03:51]} 37. Rxh7 {[%emt 0:02:09]} Rd4 {[%emt 0:00:36]} 38. Rg7 {[%emt 0:00:52]} Rxd5 {[%emt 0:00:21]} 39. Rxg6 {[%emt 0:00:26]} c4 {[%emt 0:00:15]} 40. Kg1 {[%emt 0:02:30]} Kd7 {[%emt 0:00:38]} 41. Rg7+ {[%emt 0:32:28]} Kd6 {[%emt 0:32:08]} 42. Rg6+ {[%emt 0:01:05]} Kc5 {[%emt 0:00:56]} 43. Rg8 {[%emt 0:00:25]} Kb4 {[%emt 0:00:45]} 44. Re8 {[%emt 0:00:00]} Rd2 {[%emt 0:00:00]} 45. Kf1 {[%emt 0:00:00]} Rxa2 {[%emt 0:00:00]} 0-1

[Event "SWE-ch Masters 2019"]
[Site "Eskilstuna"]
[Date "2019.07.07"]
[Round "2.5"]
[White "Engstrom, Kaj"]
[Black "Crevatin, Leo"]
[Result "1/2-1/2"]
[ECO "B30"]
[WhiteElo "2234"]
[BlackElo "2146"]
[Annotator "NA"]
[PlyCount "42"]
[EventDate "2019.07.06"]
[EventType "swiss"]
[EventCountry "SWE"]
[SourceTitle "playchess.com"]
[Source "ChessBase"]
[SourceQuality "1"]
[TimeControl "40/5400+30:1800+30"]

1. e4 {[%emt 0:02:17]} c5 {[%emt 0:00:00]} 2. Nf3 {[%emt 0:00:14]} Nc6 {[%emt 0:00:00]} 3. Bb5 {[%emt 0:03:23]} e6 {[%emt 0:00:00]} 4. O-O {[%emt 0:00:26]} Nge7 {[%emt 0:00:00]} 5. Re1 {[%emt 0:00:56]} Ng6 {[%emt 0:00:17]} 6. c3 {[%emt 0:01:19]} d5 {[%emt 0:00:25]} 7. exd5 {[%emt 0:02:06]} Qxd5 {[%emt 0:00:29]} 8. c4 {[%emt 0:12:27]} Qd6 {[%emt 0:06:25]} 9. b4 {[%emt 0:05:53]} cxb4 {[%emt 0:07:40]} 10. a3 {[%emt 0:06:58]} Be7 {[%emt 0:09:14]} 11. axb4 {[%emt 0:01:05]} O-O {[%emt 0:00:55]} 12. c5 {[%emt 0:01:55]} Qc7 {[%emt 0:01:28]} 13. Qb3 {[%emt 0:01:57]} a5 {[%emt 0:15:27]} 14. Bxc6 {[%emt 0:13:54]} bxc6 {[%emt 0:09:52]} 15. d4 {[%emt 0:01:21]} Rb8 {[%emt 0:03:03]} 16. Bd2 {[%emt 0:02:20]} e5 {[%emt 0:08:42]} 17. Qa4 {[%emt 0:14:52]} axb4 {[%emt 0:05:26]} 18. Bxb4 {[%emt 0:04:31]} Qb7 {[%emt 0:07:48]} 19. Bc3 {[%emt 0:02:23]} Bf5 {[%emt 0:02:21]} 20. Nbd2 {[%emt 0:00:57]} Ra8 {[%emt 0:05:49]} 21. Qd1 {[%emt 0:03:37]} Bg4 {[%emt 0:02:10]} 1/2-1/2

[Event "SWE-ch Masters 2019"]
[Site "Eskilstuna"]
[Date "2019.07.07"]
[Round "2.6"]
[White "Cramling Bellon, Anna"]
[Black "Tiger-Norqvist, Axel"]
[Result "0-1"]
[ECO "E71"]
[WhiteElo "2030"]
[BlackElo "2222"]
[Annotator "NA"]
[PlyCount "64"]
[EventDate "2019.07.06"]
[EventType "swiss"]
[EventCountry "SWE"]
[SourceTitle "playchess.com"]
[Source "ChessBase"]
[SourceQuality "1"]
[TimeControl "40/5400+30:1800+30"]

1. d4 {[%emt 0:00:00]} Nf6 {[%emt 0:00:00]} 2. c4 {[%emt 0:00:00]} g6 {[%emt 0:00:00]} 3. Nc3 {[%emt 0:00:00]} Bg7 {[%emt 0:00:00]} 4. e4 {[%emt 0:00:10]} O-O {[%emt 0:00:01]} 5. Bg5 {[%emt 0:10:16]} d6 {[%emt 0:00:12]} 6. h3 {[%emt 0:00:09]} c5 {[%emt 0:00:28]} 7. d5 {[%emt 0:00:25]} e6 {[%emt 0:00:23]} 8. Bd3 {[%emt 0:00:05]} exd5 {[%emt 0:00:09]} 9. exd5 {[%emt 0:00:32]} Re8+ {[%emt 0:00:48]} 10. Nge2 {[%emt 0:00:23]} Nbd7 {[%emt 0:00:33]} 11. f4 {[%emt 0:00:09]} b5 {[%emt 0:00:41]} 12. Nxb5 {[%emt 0:26:58]} Qb6 {[%emt 0:00:20]} 13. Qc2 {[%emt 0:01:21]} Nxd5 {[%emt 0:05:55]} 14. cxd5 {[%emt 0:05:35]} c4 {[%emt 0:00:11]} 15. Bxc4 {[%emt 0:04:46]} Nc5 {[%emt 0:04:12]} 16. O-O {[%emt 0:28:00]} Bf5 {[%emt 0:00:43]} 17. Qd1 {[%emt 0:00:25]} Nd3+ {[%emt 0:00:21]} 18. Kh2 {[%emt 0:01:11]} Nxb2 {[%emt 0:00:31]} 19. Qb3 {[%emt 0:01:25]} Nxc4 {[%emt 0:00:16]} 20. Qxc4 {[%emt 0:00:02]} Rac8 {[%emt 0:01:22]} 21. Qb3 {[%emt 0:08:47]} Rxe2 {[%emt 0:01:24]} 22. Na3 {[%emt 0:09:00]} Qxb3 {[%emt 0:03:13]} 23. axb3 {[%emt 0:00:01]} Bxa1 {[%emt 0:00:09]} 24. Rxa1 {[%emt 0:00:01]} Be4 {[%emt 0:00:10]} 25. Rg1 {[%emt 0:01:41]} Bxd5 {[%emt 0:00:13]} 26. f5 {[%emt 0:01:01]} gxf5 {[%emt 0:02:50]} 27. Bf4 {[%emt 0:00:01]} f6 {[%emt 0:01:32]} 28. Bxd6 {[%emt 0:00:20]} Kf7 {[%emt 0:00:11]} 29. Bg3 {[%emt 0:00:59]} Rg8 {[%emt 0:01:50]} 30. h4 {[%emt 0:00:38]} f4 {[%emt 0:00:23]} 31. Bxf4 {[%emt 0:00:26]} Bxg2 {[%emt 0:00:36]} 32. Bg3 {[%emt 0:00:35]} Be4+ {[%emt 0:00:18]} 0-1

[Event "SWE-ch Masters 2019"]
[Site "Eskilstuna"]
[Date "2019.07.07"]
[Round "2.7"]
[White "Eriksson, Jorgen"]
[Black "Adellian, Yashar"]
[Result "1/2-1/2"]
[ECO "A87"]
[WhiteElo "2211"]
[BlackElo "1995"]
[Annotator "NA"]
[PlyCount "93"]
[EventDate "2019.07.06"]
[EventType "swiss"]
[EventCountry "SWE"]
[SourceTitle "playchess.com"]
[Source "ChessBase"]
[SourceQuality "1"]
[TimeControl "40/5400+30:1800+30"]

1. d4 {[%emt 0:00:00]} e6 {[%emt 0:00:00]} 2. g3 {[%emt 0:00:57]} f5 {[%emt 0:00:02]} 3. Bg2 {[%emt 0:00:14]} Nf6 {[%emt 0:00:22]} 4. Nf3 {[%emt 0:00:30]} g6 {[%emt 0:00:14]} 5. O-O {[%emt 0:00:20]} Bg7 {[%emt 0:00:05]} 6. c4 {[%emt 0:00:22]} d6 {[%emt 0:00:18]} 7. Nc3 {[%emt 0:01:38]} O-O {[%emt 0:00:08]} 8. Qc2 {[%emt 0:09:42]} Nc6 {[%emt 0:00:43]} 9. d5 {[%emt 0:00:50]} Ne5 {[%emt 0:05:46]} 10. Nxe5 {[%emt 0:00:43]} dxe5 {[%emt 0:00:08]} 11. b3 {[%emt 0:04:01]} e4 {[%emt 0:10:40]} 12. dxe6 {[%emt 0:08:03]} Qe7 {[%emt 0:08:05]} 13. Bb2 {[%emt 0:06:17]} Bxe6 {[%emt 0:01:51]} 14. f3 {[%emt 0:02:39]} Qc5+ {[%emt 0:07:25]} 15. Kh1 {[%emt 0:01:23]} exf3 {[%emt 0:01:07]} 16. exf3 {[%emt 0:00:31]} f4 {[%emt 0:15:32]} 17. Rae1 {[%emt 0:08:21]} Qf5 {[%emt 0:04:33]} 18. Qxf5 {[%emt 0:05:43]} Bxf5 {[%emt 0:00:15]} 19. g4 {[%emt 0:05:43]} Bd3 {[%emt 0:03:21]} 20. Rf2 {[%emt 0:00:52]} g5 {[%emt 0:00:33]} 21. Rd2 {[%emt 0:02:40]} Bg6 {[%emt 0:03:20]} 22. Kg1 {[%emt 0:04:17]} c6 {[%emt 0:03:13]} 23. Bf1 {[%emt 0:00:44]} Rad8 {[%emt 0:00:21]} 24. Red1 {[%emt 0:01:11]} Rxd2 {[%emt 0:00:28]} 25. Rxd2 {[%emt 0:00:02]} Re8 {[%emt 0:00:20]} 26. Kf2 {[%emt 0:04:25]} Bf8 {[%emt 0:13:18]} 27. Na4 {[%emt 0:03:43]} Bb4 {[%emt 0:02:32]} 28. Bc3 {[%emt 0:05:32]} Bxc3 {[%emt 0:01:03]} 29. Nxc3 {[%emt 0:00:09]} Kf7 {[%emt 0:05:21]} 30. c5 {[%emt 0:00:22]} Re5 {[%emt 0:01:05]} 31. Bc4+ {[%emt 0:01:02]} Ke7 {[%emt 0:00:14]} 32. b4 {[%emt 0:00:21]} Re3 {[%emt 0:01:29]} 33. Re2 {[%emt 0:02:34]} Rxe2+ {[%emt 0:01:06]} 34. Kxe2 {[%emt 0:00:50]} Bf7 {[%emt 0:00:28]} 35. Bxf7 {[%emt 0:00:18]} Kxf7 {[%emt 0:00:04]} 36. Kd3 {[%emt 0:00:34]} Ke6 {[%emt 0:03:00]} 37. Kd4 {[%emt 0:02:37]} h6 {[%emt 0:04:35]} 38. a3 {[%emt 0:00:54]} Nd7 {[%emt 0:01:02]} 39. Ne4 {[%emt 0:08:12]} Ne5 {[%emt 0:01:25]} 40. Nd2 {[%emt 0:00:12]} Kf6 {[%emt 0:02:59]} 41. Ke4 {[%emt 0:31:04]} Ke6 {[%emt 0:02:42]} 42. a4 {[%emt 0:00:00]} Kf6 {[%emt 0:04:29]} 43. h3 {[%emt 0:00:00]} a6 {[%emt 0:10:29]} 44. Kd4 {[%emt 0:06:09]} Ke6 {[%emt 0:00:50]} 45. a5 {[%emt 0:00:13]} Kf6 {[%emt 0:05:52]} 46. Ne4+ {[%emt 0:01:55]} Ke6 {[%emt 0:00:07]} 47. Nd2 {[%emt 0:00:11]} 1/2-1/2